[Event "Titled Tuesday Blitz April 25 Late 2023"]
[White "Martinez Alcantara, Jose Eduardo"]
[Black "Sarana, Alexey"]
[WhiteFideId "3805662"]
[BlackFideId "24133795"]
[WhiteElo "2711"]
[BlackElo "2714"]
[Result "0-1"]
[Round "11"]
[TimeControl "180+2"]
[Date "2023.04.25"]
[WhiteClock "0:00:04"]
[BlackClock "0:00:09"]

1. e4 {[%clk 0:03:00]}  c5 {[%clk 0:02:57]} 2. Nf3 {[%clk 0:03:01]}  d6 {[%clk 0:02:54]} 3. c3 {[%clk 0:03:01]}  Nf6 {[%clk 0:02:54]} 4. h3 {[%clk 0:03:02]}  g6 {[%clk 0:02:51]} 5. Bd3 {[%clk 0:03:02]}  Bg7 {[%clk 0:02:52]} 6. Bc2 {[%clk 0:03:03]}  O-O {[%clk 0:02:52]} 7. O-O {[%clk 0:03:03]}  Nc6 {[%clk 0:02:52]} 8. d4 {[%clk 0:03:04]}  cxd4 {[%clk 0:02:53]} 9. cxd4 {[%clk 0:03:04]}  e5 {[%clk 0:02:54]} 10. d5 {[%clk 0:03:05]}  Nb4 {[%clk 0:02:53]} 11. Nc3 {[%clk 0:03:06]}  Nxc2 {[%clk 0:02:52]} 12. Qxc2 {[%clk 0:03:07]}  Ne8 {[%clk 0:02:46]} 13. Bg5 {[%clk 0:03:05]}  f6 {[%clk 0:02:45]} 14. Bd2 {[%clk 0:03:03]}  f5 {[%clk 0:02:37]} 15. Ng5 {[%clk 0:02:57]}  Qe7 {[%clk 0:02:35]} 16. Qb3 {[%clk 0:02:50]}  Nc7 {[%clk 0:02:33]} 17. a4 {[%clk 0:02:17]}  h6 {[%clk 0:02:32]} 18. Nf3 {[%clk 0:02:17]}  g5 {[%clk 0:02:19]} 19. exf5 {[%clk 0:02:14]}  Bxf5 {[%clk 0:02:19]} 20. Nh2 {[%clk 0:02:01]}  Na6 {[%clk 0:01:59]} 21. Be3 {[%clk 0:01:59]}  b6 {[%clk 0:01:59]} 22. Qd1 {[%clk 0:01:20]}  Nc5 {[%clk 0:01:58]} 23. a5 {[%clk 0:01:20]}  Nd3 {[%clk 0:01:55]} 24. axb6 {[%clk 0:01:19]}  axb6 {[%clk 0:01:55]} 25. Rxa8 {[%clk 0:01:18]}  Rxa8 {[%clk 0:01:55]} 26. Qb3 {[%clk 0:01:16]}  e4 {[%clk 0:01:51]} 27. Qxb6 {[%clk 0:01:01]}  Qd8 {[%clk 0:01:44]} 28. Qxd8+ {[%clk 0:00:48]}  Rxd8 {[%clk 0:01:43]} 29. Nb5 {[%clk 0:00:48]}  Nxb2 {[%clk 0:01:35]} 30. Rc1 {[%clk 0:00:46]}  Nd3 {[%clk 0:01:27]} 31. Rc6 {[%clk 0:00:45]}  Be5 {[%clk 0:01:21]} 32. Ng4 {[%clk 0:00:39]}  Bxg4 {[%clk 0:01:14]} 33. hxg4 {[%clk 0:00:40]}  Ra8 {[%clk 0:01:13]} 34. g3 {[%clk 0:00:20]}  Ra1+ {[%clk 0:00:52]} 35. Kg2 {[%clk 0:00:18]}  Nb4 {[%clk 0:00:24]} 36. Rc4 {[%clk 0:00:12]}  Nxd5 {[%clk 0:00:22]} 37. Rxe4 {[%clk 0:00:13]}  Ra5 {[%clk 0:00:20]} 38. Nxd6 {[%clk 0:00:02]}  Bxd6 {[%clk 0:00:20]} 39. Re6 {[%clk 0:00:03]}  Nxe3+ {[%clk 0:00:19]} 40. fxe3 {[%clk 0:00:04]}  Bf8 {[%clk 0:00:19]} 41. Kf3 {[%clk 0:00:04]}  Kf7 {[%clk 0:00:20]} 42. Rb6 {[%clk 0:00:05]}  Re5 {[%clk 0:00:20]} 43. Rb7+ {[%clk 0:00:05]}  Re7 {[%clk 0:00:18]} 44. Rb6 {[%clk 0:00:05]}  Re6 {[%clk 0:00:18]} 45. Rb7+ {[%clk 0:00:05]}  Kf6 {[%clk 0:00:19]} 46. Rb5 {[%clk 0:00:05]}  Bd6 {[%clk 0:00:19]} 47. Rf5+ {[%clk 0:00:05]}  Kg6 {[%clk 0:00:19]} 48. Ra5 {[%clk 0:00:06]}  Bc7 {[%clk 0:00:19]} 49. Ra3 {[%clk 0:00:05]}  Bb6 {[%clk 0:00:19]} 50. Rb3 {[%clk 0:00:06]}  Kf6 {[%clk 0:00:19]} 51. Rc3 {[%clk 0:00:06]}  Ke7 {[%clk 0:00:19]} 52. Rb3 {[%clk 0:00:06]}  Kd7 {[%clk 0:00:20]} 53. Rc3 {[%clk 0:00:06]}  Kd6 {[%clk 0:00:19]} 54. Rd3+ {[%clk 0:00:06]}  Kc6 {[%clk 0:00:19]} 55. Rb3 {[%clk 0:00:06]}  Bc5 {[%clk 0:00:20]} 56. Rd3 {[%clk 0:00:06]}  Kb5 {[%clk 0:00:20]} 57. e4 {[%clk 0:00:06]}  Kc4 {[%clk 0:00:20]} 58. Rd5 {[%clk 0:00:06]}  Rf6+ {[%clk 0:00:19]} 59. Rf5 {[%clk 0:00:07]}  Bd4 {[%clk 0:00:19]} 60. e5 {[%clk 0:00:03]}  Bxe5 {[%clk 0:00:18]} 61. Ke4 {[%clk 0:00:04]}  Bc3 {[%clk 0:00:18]} 62. Rd5 {[%clk 0:00:02]}  Re6+ {[%clk 0:00:18]} 63. Kf5 {[%clk 0:00:02]}  Re3 {[%clk 0:00:12]} 64. Rd6 {[%clk 0:00:02]}  Rxg3 {[%clk 0:00:12]} 65. Rxh6 {[%clk 0:00:02]}  Bd2 {[%clk 0:00:12]} 66. Rc6+ {[%clk 0:00:02]}  Kb3 {[%clk 0:00:10]} 67. Rd6 {[%clk 0:00:02]}  Rf3+ {[%clk 0:00:10]} 68. Ke4 {[%clk 0:00:02]}  Rf2 {[%clk 0:00:09]} 69. Rd3+ {[%clk 0:00:01]}  Kc2 {[%clk 0:00:09]} 70. Rd7 {[%clk 0:00:01]}  Rf4+ {[%clk 0:00:09]} 71. Ke5 {[%clk 0:00:02]}  Rxg4 {[%clk 0:00:10]} 72. Kf5 {[%clk 0:00:02]}  Ra4 {[%clk 0:00:10]} 73. Rc7+ {[%clk 0:00:02]}  Kd3 {[%clk 0:00:10]} 74. Rd7+ {[%clk 0:00:03]}  Ke2 {[%clk 0:00:10]} 75. Ra7 {[%clk 0:00:04]}  Rxa7 {[%clk 0:00:09]} 0-1


[Site "https://www.chess.com"]

[Event "Titled Tuesday Blitz April 25 Late 2023"]
[White "Duda, Jan-Krzysztof"]
[Black "Kuzubov, Yuriy"]
[WhiteFideId "1170546"]
[BlackFideId "14112906"]
[WhiteElo "2790"]
[BlackElo "2496"]
[Result "0-1"]
[Round "11"]
[TimeControl "180+2"]
[Date "2023.04.25"]
[WhiteClock "0:00:04"]
[BlackClock "0:00:29"]

1. e4 {[%clk 0:03:00]}  c5 {[%clk 0:02:56]} 2. Nf3 {[%clk 0:03:01]}  Nc6 {[%clk 0:02:57]} 3. Bb5 {[%clk 0:03:00]}  d6 {[%clk 0:02:55]} 4. O-O {[%clk 0:02:56]}  Bd7 {[%clk 0:02:55]} 5. Re1 {[%clk 0:02:56]}  Nf6 {[%clk 0:02:56]} 6. c3 {[%clk 0:02:55]}  a6 {[%clk 0:02:56]} 7. Bf1 {[%clk 0:02:55]}  Bg4 {[%clk 0:02:56]} 8. h3 {[%clk 0:02:55]}  Bxf3 {[%clk 0:02:57]} 9. Qxf3 {[%clk 0:02:56]}  e6 {[%clk 0:02:58]} 10. Qd1 {[%clk 0:02:51]}  d5 {[%clk 0:02:54]} 11. e5 {[%clk 0:02:37]}  Nd7 {[%clk 0:02:53]} 12. d4 {[%clk 0:02:37]}  cxd4 {[%clk 0:02:44]} 13. cxd4 {[%clk 0:02:38]}  Qb6 {[%clk 0:02:45]} 14. Be3 {[%clk 0:02:39]}  Qxb2 {[%clk 0:02:37]} 15. Nd2 {[%clk 0:02:40]}  Bb4 {[%clk 0:02:34]} 16. Rb1 {[%clk 0:02:24]}  Qa3 {[%clk 0:02:24]} 17. Re2 {[%clk 0:02:21]}  O-O {[%clk 0:02:09]} 18. Nf3 {[%clk 0:02:21]}  Rfc8 {[%clk 0:02:07]} 19. h4 {[%clk 0:02:15]}  b5 {[%clk 0:02:03]} 20. h5 {[%clk 0:02:07]}  Be7 {[%clk 0:02:02]} 21. h6 {[%clk 0:02:04]}  g6 {[%clk 0:02:02]} 22. Rb3 {[%clk 0:01:56]}  Qa4 {[%clk 0:01:59]} 23. Qe1 {[%clk 0:01:21]}  Na5 {[%clk 0:01:38]} 24. Rb1 {[%clk 0:01:20]}  Nc4 {[%clk 0:01:34]} 25. Bc1 {[%clk 0:01:18]}  Rc7 {[%clk 0:01:24]} 26. g3 {[%clk 0:01:13]}  Rac8 {[%clk 0:01:24]} 27. Bf4 {[%clk 0:01:06]}  Na3 {[%clk 0:01:19]} 28. Rb3 {[%clk 0:01:05]}  Nc2 {[%clk 0:01:14]} 29. Qb1 {[%clk 0:01:04]}  Nxd4 {[%clk 0:01:12]} 30. Nxd4 {[%clk 0:01:05]}  Qxd4 {[%clk 0:01:12]} 31. Bh3 {[%clk 0:01:03]}  Nc5 {[%clk 0:01:01]} 32. Rf3 {[%clk 0:00:36]}  Ne4 {[%clk 0:00:57]} 33. Qf1 {[%clk 0:00:29]}  Bg5 {[%clk 0:00:50]} 34. Kh2 {[%clk 0:00:29]}  Bxf4 {[%clk 0:00:47]} 35. Rxf4 {[%clk 0:00:30]}  Rc1 {[%clk 0:00:45]} 36. Qg2 {[%clk 0:00:28]}  R1c2 {[%clk 0:00:42]} 37. Bxe6 {[%clk 0:00:17]}  fxe6 {[%clk 0:00:37]} 38. Qh3 {[%clk 0:00:13]}  Qb6 {[%clk 0:00:33]} 39. Qg4 {[%clk 0:00:06]}  Rxe2 {[%clk 0:00:31]} 40. Qxe2 {[%clk 0:00:06]}  Rf8 {[%clk 0:00:30]} 41. Rxf8+ {[%clk 0:00:02]}  Kxf8 {[%clk 0:00:30]} 42. Qf3+ {[%clk 0:00:02]}  Ke8 {[%clk 0:00:30]} 43. Kg2 {[%clk 0:00:01]}  Qxf2+ {[%clk 0:00:30]} 44. Qxf2 {[%clk 0:00:02]}  Nxf2 {[%clk 0:00:30]} 45. Kxf2 {[%clk 0:00:03]}  Kd7 {[%clk 0:00:30]} 46. Ke3 {[%clk 0:00:04]}  b4 {[%clk 0:00:29]} 47. Kd4 {[%clk 0:00:04]}  Kc6 {[%clk 0:00:29]} 0-1


[Site "https://www.chess.com"]

[Event "Titled Tuesday Blitz April 25 Late 2023"]
[White "Grigoriants, Sergey"]
[Black "Bluebaum, Matthias"]
[WhiteFideId "4130804"]
[BlackFideId "24651516"]
[WhiteElo "2502"]
[BlackElo "2638"]
[Result "1-0"]
[Round "11"]
[TimeControl "180+2"]
[Date "2023.04.25"]
[WhiteClock "0:00:08"]
[BlackClock "0:00:07"]

1. c4 {[%clk 0:02:55]}  e6 {[%clk 0:02:59]} 2. d4 {[%clk 0:02:46]}  d5 {[%clk 0:03:00]} 3. Nc3 {[%clk 0:02:46]}  Bb4 {[%clk 0:03:01]} 4. e3 {[%clk 0:02:41]}  Nf6 {[%clk 0:03:00]} 5. Bd3 {[%clk 0:02:28]}  O-O {[%clk 0:02:54]} 6. Ne2 {[%clk 0:02:23]}  dxc4 {[%clk 0:02:53]} 7. Bxc4 {[%clk 0:02:23]}  Be7 {[%clk 0:02:54]} 8. O-O {[%clk 0:02:21]}  c5 {[%clk 0:02:55]} 9. dxc5 {[%clk 0:02:14]}  Bxc5 {[%clk 0:02:55]} 10. Ng3 {[%clk 0:02:12]}  Qc7 {[%clk 0:02:47]} 11. b3 {[%clk 0:02:10]}  a6 {[%clk 0:02:45]} 12. Bb2 {[%clk 0:02:09]}  b5 {[%clk 0:02:45]} 13. Bd3 {[%clk 0:02:09]}  Bb7 {[%clk 0:02:42]} 14. Nce4 {[%clk 0:02:04]}  Nxe4 {[%clk 0:01:48]} 15. Nxe4 {[%clk 0:02:03]}  f5 {[%clk 0:01:48]} 16. Nxc5 {[%clk 0:01:42]}  Qxc5 {[%clk 0:01:49]} 17. Qe2 {[%clk 0:01:42]}  Nd7 {[%clk 0:01:36]} 18. Rac1 {[%clk 0:01:39]}  Qd5 {[%clk 0:01:36]} 19. f3 {[%clk 0:01:38]}  Rac8 {[%clk 0:01:21]} 20. Rfd1 {[%clk 0:01:14]}  Rxc1 {[%clk 0:01:21]} 21. Rxc1 {[%clk 0:01:14]}  Rc8 {[%clk 0:01:11]} 22. Rxc8+ {[%clk 0:00:50]}  Bxc8 {[%clk 0:01:11]} 23. Qc2 {[%clk 0:00:50]}  Bb7 {[%clk 0:01:07]} 24. Qc3 {[%clk 0:00:44]}  Nf6 {[%clk 0:01:07]} 25. Kf2 {[%clk 0:00:39]}  Qd6 {[%clk 0:00:56]} 26. g3 {[%clk 0:00:14]}  Qd5 {[%clk 0:00:48]} 27. Be2 {[%clk 0:00:14]}  h5 {[%clk 0:00:35]} 28. a4 {[%clk 0:00:14]}  bxa4 {[%clk 0:00:34]} 29. bxa4 {[%clk 0:00:15]}  Bc6 {[%clk 0:00:33]} 30. a5 {[%clk 0:00:14]}  Kh7 {[%clk 0:00:29]} 31. Qe5 {[%clk 0:00:13]}  Qb3 {[%clk 0:00:23]} 32. Bd4 {[%clk 0:00:12]}  Qa2 {[%clk 0:00:19]} 33. Kf1 {[%clk 0:00:10]}  Bd5 {[%clk 0:00:16]} 34. Qc7 {[%clk 0:00:09]}  Qb1+ {[%clk 0:00:14]} 35. Kf2 {[%clk 0:00:09]}  Qh1 {[%clk 0:00:14]} 36. Bxf6 {[%clk 0:00:09]}  Qxh2+ {[%clk 0:00:14]} 37. Ke1 {[%clk 0:00:09]}  Qg1+ {[%clk 0:00:14]} 38. Kd2 {[%clk 0:00:09]}  Qxg3 {[%clk 0:00:05]} 39. Qxg3 {[%clk 0:00:09]}  gxf6 {[%clk 0:00:06]} 40. f4 {[%clk 0:00:09]}  e5 {[%clk 0:00:05]} 41. Bxh5 {[%clk 0:00:08]}  Bf7 {[%clk 0:00:06]} 42. Bxf7 {[%clk 0:00:08]}  Kh6 {[%clk 0:00:07]} 43. Qg6# {[%clk 0:00:08]} 1-0


[Site "https://www.chess.com"]

[Event "Titled Tuesday Blitz April 25 Late 2023"]
[White "Sviridov, Valery"]
[Black "Makarian, Rudik"]
[WhiteFideId "4120680"]
[BlackFideId "44105681"]
[WhiteElo "2457"]
[BlackElo "2430"]
[Result "1-0"]
[Round "11"]
[TimeControl "180+2"]
[Date "2023.04.25"]
[WhiteClock "0:00:04"]
[BlackClock "0:00:02"]

1. d4 {[%clk 0:02:59]}  Nf6 {[%clk 0:03:00]} 2. Nf3 {[%clk 0:02:59]}  c5 {[%clk 0:03:00]} 3. c4 {[%clk 0:02:59]}  g6 {[%clk 0:02:58]} 4. g3 {[%clk 0:02:58]}  Bg7 {[%clk 0:02:58]} 5. Bg2 {[%clk 0:02:58]}  cxd4 {[%clk 0:02:59]} 6. Nxd4 {[%clk 0:02:58]}  Nc6 {[%clk 0:02:59]} 7. Nc3 {[%clk 0:02:58]}  h5 {[%clk 0:03:00]} 8. h3 {[%clk 0:02:45]}  Nxd4 {[%clk 0:02:59]} 9. Qxd4 {[%clk 0:02:45]}  d6 {[%clk 0:03:00]} 10. Qd2 {[%clk 0:02:44]}  O-O {[%clk 0:02:46]} 11. b3 {[%clk 0:02:42]}  a6 {[%clk 0:02:03]} 12. Bb2 {[%clk 0:02:42]}  Rb8 {[%clk 0:02:03]} 13. Rd1 {[%clk 0:02:34]}  Bd7 {[%clk 0:01:54]} 14. O-O {[%clk 0:02:08]}  b5 {[%clk 0:01:52]} 15. cxb5 {[%clk 0:02:06]}  axb5 {[%clk 0:01:52]} 16. e4 {[%clk 0:01:51]}  b4 {[%clk 0:01:48]} 17. Ne2 {[%clk 0:01:50]}  Qa5 {[%clk 0:01:43]} 18. a4 {[%clk 0:01:49]}  Rfc8 {[%clk 0:01:29]} 19. Rc1 {[%clk 0:01:49]}  Qa6 {[%clk 0:01:06]} 20. Rfe1 {[%clk 0:01:44]}  Bc6 {[%clk 0:00:45]} 21. Nd4 {[%clk 0:01:40]}  Ba8 {[%clk 0:00:44]} 22. Rxc8+ {[%clk 0:01:30]}  Qxc8 {[%clk 0:00:45]} 23. Rc1 {[%clk 0:01:24]}  Qd7 {[%clk 0:00:42]} 24. Qe1 {[%clk 0:01:21]}  h4 {[%clk 0:00:38]} 25. g4 {[%clk 0:01:21]}  Bh6 {[%clk 0:00:33]} 26. Rd1 {[%clk 0:01:19]}  Bf4 {[%clk 0:00:30]} 27. Ne2 {[%clk 0:01:18]}  Bh6 {[%clk 0:00:23]} 28. Nd4 {[%clk 0:01:02]}  Qc7 {[%clk 0:00:22]} 29. Qe2 {[%clk 0:00:52]}  Bf4 {[%clk 0:00:20]} 30. Qd3 {[%clk 0:00:46]}  Qc5 {[%clk 0:00:13]} 31. Ne2 {[%clk 0:00:44]}  Be5 {[%clk 0:00:13]} 32. Bc1 {[%clk 0:00:41]}  Rc8 {[%clk 0:00:10]} 33. Bd2 {[%clk 0:00:37]}  Qc2 {[%clk 0:00:10]} 34. Bxb4 {[%clk 0:00:36]}  Bxe4 {[%clk 0:00:08]} 35. Bxe4 {[%clk 0:00:20]}  Nxe4 {[%clk 0:00:09]} 36. Qxc2 {[%clk 0:00:13]}  Rxc2 {[%clk 0:00:10]} 37. Re1 {[%clk 0:00:14]}  Ng5 {[%clk 0:00:09]} 38. Kg2 {[%clk 0:00:14]}  Ne6 {[%clk 0:00:05]} 39. Kf3 {[%clk 0:00:10]}  Rb2 {[%clk 0:00:05]} 40. Nc1 {[%clk 0:00:09]}  Nd4+ {[%clk 0:00:05]} 41. Ke4 {[%clk 0:00:06]}  Nxb3 {[%clk 0:00:04]} 42. Nxb3 {[%clk 0:00:07]}  Rxb3 {[%clk 0:00:05]} 43. Bd2 {[%clk 0:00:07]}  e6 {[%clk 0:00:03]} 44. f4 {[%clk 0:00:06]}  Bg7 {[%clk 0:00:04]} 45. Re3 {[%clk 0:00:05]}  d5+ {[%clk 0:00:04]} 46. Kf3 {[%clk 0:00:05]}  Rb2 {[%clk 0:00:04]} 47. Bc1 {[%clk 0:00:04]}  Ra2 {[%clk 0:00:04]} 48. Ra3 {[%clk 0:00:04]}  Rc2 {[%clk 0:00:04]} 49. Be3 {[%clk 0:00:03]}  d4 {[%clk 0:00:04]} 50. Bf2 {[%clk 0:00:04]}  Rc3+ {[%clk 0:00:04]} 51. Rxc3 {[%clk 0:00:03]}  dxc3 {[%clk 0:00:05]} 52. Ke2 {[%clk 0:00:03]}  Kf8 {[%clk 0:00:02]} 53. a5 {[%clk 0:00:04]} 1-0


[Site "https://www.chess.com"]

[Event "Titled Tuesday Blitz April 25 Late 2023"]
[White "Tari, Aryan"]
[Black "Lazavik, Denis"]
[WhiteFideId "1510045"]
[BlackFideId "13515110"]
[WhiteElo "2561"]
[BlackElo "2560"]
[Result "1-0"]
[Round "11"]
[TimeControl "180+2"]
[Date "2023.04.25"]
[WhiteClock "0:00:06"]
[BlackClock "0:00:03"]

1. e4 {[%clk 0:02:50]}  c5 {[%clk 0:03:00]} 2. Nc3 {[%clk 0:02:49]}  e6 {[%clk 0:03:00]} 3. d4 {[%clk 0:02:49]}  cxd4 {[%clk 0:03:00]} 4. Qxd4 {[%clk 0:02:50]}  Nc6 {[%clk 0:03:01]} 5. Qd3 {[%clk 0:02:50]}  a6 {[%clk 0:02:57]} 6. Nf3 {[%clk 0:02:37]}  d6 {[%clk 0:02:50]} 7. Bf4 {[%clk 0:02:35]}  e5 {[%clk 0:02:43]} 8. Bg5 {[%clk 0:02:35]}  Qa5 {[%clk 0:02:23]} 9. a3 {[%clk 0:01:56]}  Be6 {[%clk 0:02:21]} 10. O-O-O {[%clk 0:01:56]}  Rc8 {[%clk 0:02:19]} 11. Nd5 {[%clk 0:01:52]}  h6 {[%clk 0:02:17]} 12. Bd2 {[%clk 0:01:44]}  Qd8 {[%clk 0:02:16]} 13. Be3 {[%clk 0:01:43]}  Bxd5 {[%clk 0:02:05]} 14. exd5 {[%clk 0:01:41]}  Na5 {[%clk 0:02:05]} 15. Nd2 {[%clk 0:01:28]}  b5 {[%clk 0:01:59]} 16. Kb1 {[%clk 0:01:24]}  Nf6 {[%clk 0:01:58]} 17. Be2 {[%clk 0:01:24]}  Be7 {[%clk 0:01:57]} 18. g4 {[%clk 0:01:24]}  Nd7 {[%clk 0:01:50]} 19. Ne4 {[%clk 0:01:16]}  Nc4 {[%clk 0:01:48]} 20. Bc1 {[%clk 0:01:16]}  Nc5 {[%clk 0:01:46]} 21. Nxc5 {[%clk 0:01:15]}  Rxc5 {[%clk 0:01:47]} 22. h4 {[%clk 0:01:09]}  Bxh4 {[%clk 0:01:04]} 23. b3 {[%clk 0:01:09]}  Nb6 {[%clk 0:01:05]} 24. Be3 {[%clk 0:01:06]}  Rxd5 {[%clk 0:01:04]} 25. Qe4 {[%clk 0:01:06]}  Rxd1+ {[%clk 0:01:04]} 26. Rxd1 {[%clk 0:00:52]}  O-O {[%clk 0:00:54]} 27. Qc6 {[%clk 0:00:45]}  Nc8 {[%clk 0:00:54]} 28. Qxa6 {[%clk 0:00:45]}  Bg5 {[%clk 0:00:53]} 29. Bxb5 {[%clk 0:00:36]}  Bxe3 {[%clk 0:00:53]} 30. fxe3 {[%clk 0:00:37]}  Qc7 {[%clk 0:00:46]} 31. Qc6 {[%clk 0:00:33]}  Qa7 {[%clk 0:00:45]} 32. a4 {[%clk 0:00:28]}  Qxe3 {[%clk 0:00:43]} 33. Bc4 {[%clk 0:00:29]}  Nb6 {[%clk 0:00:36]} 34. Rxd6 {[%clk 0:00:24]}  Nxc4 {[%clk 0:00:31]} 35. Qxc4 {[%clk 0:00:25]}  e4 {[%clk 0:00:27]} 36. Ka2 {[%clk 0:00:16]}  Qf4 {[%clk 0:00:24]} 37. Rd7 {[%clk 0:00:14]}  Re8 {[%clk 0:00:19]} 38. a5 {[%clk 0:00:12]}  Qf6 {[%clk 0:00:17]} 39. Rd4 {[%clk 0:00:06]}  e3 {[%clk 0:00:10]} 40. Re4 {[%clk 0:00:06]}  Ra8 {[%clk 0:00:11]} 41. Qd5 {[%clk 0:00:05]}  Rc8 {[%clk 0:00:10]} 42. Qd3 {[%clk 0:00:03]}  Qf2 {[%clk 0:00:06]} 43. Rxe3 {[%clk 0:00:02]}  Rxc2+ {[%clk 0:00:06]} 44. Ka3 {[%clk 0:00:03]}  Rc8 {[%clk 0:00:04]} 45. Qf5 {[%clk 0:00:02]}  Qxe3 {[%clk 0:00:02]} 46. Qxc8+ {[%clk 0:00:03]}  Kh7 {[%clk 0:00:03]} 47. Qf5+ {[%clk 0:00:03]}  Kg8 {[%clk 0:00:03]} 48. a6 {[%clk 0:00:03]}  Qc1+ {[%clk 0:00:03]} 49. Kb4 {[%clk 0:00:04]}  Qd2+ {[%clk 0:00:04]} 50. Kb5 {[%clk 0:00:04]}  Qe2+ {[%clk 0:00:04]} 51. Kb6 {[%clk 0:00:04]}  Qe3+ {[%clk 0:00:04]} 52. Kb7 {[%clk 0:00:05]}  Qxb3+ {[%clk 0:00:05]} 53. Kc7 {[%clk 0:00:05]}  Qc4+ {[%clk 0:00:05]} 54. Kb6 {[%clk 0:00:05]}  Qd4+ {[%clk 0:00:04]} 55. Qc5 {[%clk 0:00:05]}  Qd8+ {[%clk 0:00:04]} 56. Kb7 {[%clk 0:00:05]}  Qd7+ {[%clk 0:00:04]} 57. Kb8 {[%clk 0:00:06]}  Qd3 {[%clk 0:00:03]} 58. Qc8+ {[%clk 0:00:05]}  Kh7 {[%clk 0:00:03]} 59. Qf5+ {[%clk 0:00:05]}  Qxf5 {[%clk 0:00:03]} 60. gxf5 {[%clk 0:00:06]} 1-0


[Site "https://www.chess.com"]

[Event "Titled Tuesday Blitz April 25 Late 2023"]
[White "Esipenko, Andrey"]
[Black "Andreikin, Dmitry"]
[WhiteFideId "24175439"]
[BlackFideId "4158814"]
[WhiteElo "2615"]
[BlackElo "2736"]
[Result "0-1"]
[Round "11"]
[TimeControl "180+2"]
[Date "2023.04.25"]
[WhiteClock "0:00:01"]
[BlackClock "0:00:05"]

1. e4 {[%clk 0:02:29]}  c5 {[%clk 0:02:30]} 2. Nf3 {[%clk 0:02:29]}  Nc6 {[%clk 0:02:31]} 3. Bb5 {[%clk 0:02:29]}  Nf6 {[%clk 0:02:30]} 4. Nc3 {[%clk 0:02:26]}  e5 {[%clk 0:02:30]} 5. d3 {[%clk 0:02:20]}  d6 {[%clk 0:02:29]} 6. O-O {[%clk 0:02:15]}  Be7 {[%clk 0:02:27]} 7. a4 {[%clk 0:02:14]}  O-O {[%clk 0:02:25]} 8. h3 {[%clk 0:02:13]}  Nd4 {[%clk 0:02:21]} 9. Bc4 {[%clk 0:02:12]}  Be6 {[%clk 0:02:21]} 10. Re1 {[%clk 0:02:01]}  Qd7 {[%clk 0:02:09]} 11. Bg5 {[%clk 0:01:59]}  Ne8 {[%clk 0:02:05]} 12. Be3 {[%clk 0:01:54]}  Nc7 {[%clk 0:02:04]} 13. Nd5 {[%clk 0:01:40]}  Nxd5 {[%clk 0:01:55]} 14. exd5 {[%clk 0:01:39]}  Bf5 {[%clk 0:01:48]} 15. c3 {[%clk 0:01:33]}  Nxf3+ {[%clk 0:01:46]} 16. Qxf3 {[%clk 0:01:34]}  Bg6 {[%clk 0:01:43]} 17. b4 {[%clk 0:01:29]}  cxb4 {[%clk 0:01:41]} 18. cxb4 {[%clk 0:01:30]}  f5 {[%clk 0:01:41]} 19. Bb5 {[%clk 0:01:26]}  Qd8 {[%clk 0:01:40]} 20. Rac1 {[%clk 0:01:25]}  a6 {[%clk 0:01:38]} 21. Bc4 {[%clk 0:01:26]}  Bg5 {[%clk 0:01:28]} 22. b5 {[%clk 0:01:11]}  Bxe3 {[%clk 0:01:15]} 23. fxe3 {[%clk 0:01:00]}  a5 {[%clk 0:01:04]} 24. Bb3 {[%clk 0:00:58]}  Qb6 {[%clk 0:00:51]} 25. Kh2 {[%clk 0:00:57]}  Rac8 {[%clk 0:00:43]} 26. Bc4 {[%clk 0:00:34]}  f4 {[%clk 0:00:38]} 27. e4 {[%clk 0:00:26]}  h5 {[%clk 0:00:37]} 28. Rc2 {[%clk 0:00:23]}  Kh7 {[%clk 0:00:36]} 29. Qf2 {[%clk 0:00:20]}  Qxf2 {[%clk 0:00:31]} 30. Rxf2 {[%clk 0:00:21]}  b6 {[%clk 0:00:32]} 31. h4 {[%clk 0:00:20]}  Kh6 {[%clk 0:00:29]} 32. Ree2 {[%clk 0:00:14]}  Rf6 {[%clk 0:00:29]} 33. g3 {[%clk 0:00:12]}  Rcf8 {[%clk 0:00:27]} 34. Bb3 {[%clk 0:00:10]}  Be8 {[%clk 0:00:18]} 35. Bd1 {[%clk 0:00:09]}  Bd7 {[%clk 0:00:18]} 36. Rc2 {[%clk 0:00:10]}  fxg3+ {[%clk 0:00:13]} 37. Kxg3 {[%clk 0:00:10]}  Rxf2 {[%clk 0:00:14]} 38. Rxf2 {[%clk 0:00:11]}  Rxf2 {[%clk 0:00:14]} 39. Kxf2 {[%clk 0:00:12]}  g5 {[%clk 0:00:11]} 40. Kg3 {[%clk 0:00:12]}  Kg6 {[%clk 0:00:12]} 41. Be2 {[%clk 0:00:12]}  Be8 {[%clk 0:00:09]} 42. Bd1 {[%clk 0:00:12]}  Kf6 {[%clk 0:00:09]} 43. Be2 {[%clk 0:00:12]}  Bf7 {[%clk 0:00:10]} 44. Bd1 {[%clk 0:00:12]}  Bg6 {[%clk 0:00:10]} 45. Be2 {[%clk 0:00:13]}  Be8 {[%clk 0:00:11]} 46. Bd1 {[%clk 0:00:13]}  Kg6 {[%clk 0:00:12]} 47. Be2 {[%clk 0:00:14]}  Bxb5 {[%clk 0:00:07]} 48. axb5 {[%clk 0:00:14]}  a4 {[%clk 0:00:08]} 49. Bd1 {[%clk 0:00:14]}  a3 {[%clk 0:00:08]} 50. Bb3 {[%clk 0:00:15]}  Kf6 {[%clk 0:00:08]} 51. Bc4 {[%clk 0:00:14]}  Kg6 {[%clk 0:00:05]} 52. Ba2 {[%clk 0:00:14]}  Kf6 {[%clk 0:00:05]} 53. Bb1 {[%clk 0:00:10]}  Kg6 {[%clk 0:00:04]} 54. d4 {[%clk 0:00:02]}  gxh4+ {[%clk 0:00:05]} 55. Kxh4 {[%clk 0:00:02]}  exd4 {[%clk 0:00:05]} 56. e5+ {[%clk 0:00:02]}  Kf7 {[%clk 0:00:04]} 57. exd6 {[%clk 0:00:01]}  d3 {[%clk 0:00:04]} 58. Kxh5 {[%clk 0:00:01]}  d2 {[%clk 0:00:04]} 59. Bc2 {[%clk 0:00:01]}  a2 {[%clk 0:00:05]} 0-1


[Site "https://www.chess.com"]